bitfinex/quotes_SOLUSD_20250928
["timestamp","ask_amount","ask_price","bid_price","bid_amount"]
[1759088808114,26.0,206.74,206.73,1.6822524]
[1759088808484,36.96,206.77,206.73,1.6822524]
[1759088808485,0.65,206.77,206.73,1.6822524]
[1759088808700,0.65,206.77,206.75,1.6822524]
[1759088808909,132.8,206.78,206.75,1.6822524]
[1759088809212,133.45,206.78,206.77,1.6822524]
[1759088811212,133.45,206.78,206.75,1.6822524]
[1759088812284,132.8,206.78,206.77,1.6822524]
[1759088812505,0.2,206.79,206.77,1.6822524]
[1759088813392,0.2,206.79,206.78,0.64]
[1759088813814,0.2,206.79,206.77,8.20264509]
[1759088818796,37.0,206.85,206.78,1.6822524]
[1759088818996,1.21164811,206.84,206.78,1.6822524]
[1759088819192,37.0,206.85,206.78,1.6822524]
[1759088819398,1.21168561,206.84,206.78,1.6822524]
[1759088820920,27.21168561,206.84,206.78,1.6822524]
[1759088821098,26.0,206.84,206.78,1.6822524]
[1759088821295,1.21166697,206.83,206.78,1.6822524]
[1759088821591,1.88166697,206.83,206.78,1.6822524]
[1759088822097,1.21166697,206.83,206.78,1.6822524]
[1759088822410,1.88166697,206.82,206.78,1.6822524]
[1759088822610,0.67,206.82,206.78,1.6822524]
[1759088822919,1.88166697,206.82,206.78,1.6822524]
[1759088823210,0.67,206.82,206.78,1.6822524]
[1759088824399,1.21173106,206.81,206.78,1.6822524]
[1759088824612,0.67,206.82,206.78,1.6822524]
[1759088824802,1.88173128,206.81,206.76,1.6822524]
[1759088825006,0.67,206.81,206.76,1.6822524]
[1759088825510,1.211769,206.8,206.76,1.6822524]
[1759088825709,0.67,206.81,206.76,1.6822524]
[1759088825920,1.21176921,206.8,206.76,1.6822524]
[1759088826129,0.67,206.81,206.76,1.6822524]
[1759088826296,1.21176921,206.8,206.76,1.6822524]
[1759088826497,26.0,206.82,206.76,1.6822524]
[1759088826806,1.21176921,206.81,206.76,1.6822524]
[1759088827005,1.21176921,206.8,206.76,1.6822524]
[1759088827321,26.0,206.82,206.74,6.52039269]
[1759088827499,1.21176921,206.81,206.76,1.6822524]
[1759088827700,1.21176921,206.8,206.76,1.6822524]
[1759088828015,26.0,206.82,206.76,1.6822524]
[1759088828195,1.21176921,206.81,206.74,8.20264509]
[1759088828393,1.21176921,206.8,206.74,8.20264509]
[1759088828719,26.0,206.82,206.76,1.6822524]
[1759088829016,1.21168648,206.81,206.76,1.6822524]
[1759088829201,26.0,206.82,206.76,1.6822524]
[1759088829401,1.21168648,206.81,206.76,1.6822524]
[1759088829603,26.0,206.82,206.76,1.6822524]
[1759088832524,26.0,206.82,206.76,16.23229241]
[1759088834511,26.0,206.82,206.76,14.55004001]
[1759088835218,26.0,206.82,206.75,1.6822524]
[1759088835516,26.0,206.82,206.75,16.23229241]
[1759088836222,26.0,206.82,206.75,14.55004001]
[1759088836419,26.0,206.82,206.74,3.32526698]
[1759088836721,26.71,206.82,206.75,14.55004001]
[1759088837611,0.71,206.91,206.81,13.59559401]
[1759088837820,0.71,206.91,206.84,2.62526698]
[1759088838316,0.71,206.91,206.86,2.62526698]
[1759088838820,0.91,206.94,206.87,0.7]
[1759088839019,0.91,206.94,206.88,2.62526698]
[1759088839202,26.91,206.94,206.88,2.62526698]
[1759088839394,26.0,206.93,206.88,2.62526698]
[1759088839819,26.0,206.93,206.88,3.32526698]
[1759088840016,26.0,206.93,206.89,14.54298665]
[1759088840810,0.2,206.94,206.92,2.62526698]
[1759088841006,0.2,206.94,206.93,3.32526698]
[1759088841807,0.2,206.94,206.93,0.7]
[1759088842120,0.2,206.94,206.93,17.86261585]
[1759088843822,0.2,206.94,206.93,15.23734887]
[1759088844014,0.2,206.94,206.93,17.86261585]
[1759088844412,0.2,206.94,206.93,15.23734887]
[1759088844607,0.2,206.94,206.93,17.86261585]
[1759088845516,0.2,206.94,206.93,14.53734887]
[1759088847204,3.54526698,206.94,206.87,3.32526698]
[1759088847411,0.72,206.93,206.87,40.52526698]
[1759088847611,0.72,206.93,206.88,14.54157679]
[1759088847812,0.72,206.93,206.88,15.24157679]
[1759088848013,0.72,206.93,206.89,0.7]
[1759088848418,0.72,206.93,206.9,14.54157679]
[1759088849034,0.72,206.93,206.89,0.7]
[1759088849214,0.72,206.93,206.9,2.62526698]
[1759088851722,0.72,206.92,206.9,2.62526698]
[1759088852023,0.92,206.94,206.9,2.62526698]
[1759088852220,0.72,206.93,206.9,2.62526698]
[1759088856734,0.72,206.92,206.9,2.62526698]
[1759088856942,3.54526698,206.94,206.9,2.62526698]
[1759088857121,0.72,206.93,206.9,2.62526698]
[1759088858635,0.72,206.93,206.9,3.32526698]
[1759088859635,0.72,206.93,206.9,0.7]
[1759088859835,0.72,206.93,206.91,2.62526698]
[1759088861847,0.72,206.93,206.9,0.7]
[1759088862137,0.72,206.93,206.91,2.62526698]
[1759088862742,0.72,206.93,206.89,37.84]
[1759088863140,0.72,206.93,206.9,2.62526698]
[1759088865141,0.72,206.93,206.9,2.62526698]
[1759088869952,0.72,206.93,206.9,3.32526698]
[1759088876946,2.62526698,206.91,206.87,37.76]
[1759088877145,0.71,206.9,206.87,37.76]
[1759088877758,0.71,206.9,206.88,2.62526698]
[1759088878140,0.71,206.89,206.85,0.68]
[1759088878340,3.33526698,206.89,206.84,37.12]
[1759088878535,0.71,206.88,206.86,2.62526698]
[1759088878754,0.71,206.88,206.85,0.68]
[1759088879064,0.71,206.88,206.85,15.22510194]
[1759088879237,0.71,206.89,206.85,15.22510194]
[1759088880738,0.71,206.89,206.85,14.54510194]
[1759088880950,0.71,206.89,206.86,0.68]
[1759088883158,0.2,206.94,206.88,2.62526698]
[1759088883365,0.2,206.94,206.89,0.68]
[1759088883661,0.91,206.94,206.89,0.68]
[1759088883864,0.91,206.94,206.88,39.74526698]
[1759088884061,0.91,206.94,206.9,15.22157679]
[1759088884649,0.71,206.93,206.9,15.22157679]
[1759088886140,2.62526698,206.93,206.9,14.54157679]
[1759088886348,2.62526698,206.91,206.87,37.12]
[1759088886543,28.62526698,206.92,206.88,15.22298665]
[1759088886863,3.33526698,206.93,206.89,0.68]
[1759088887065,2.62526698,206.93,206.89,0.68]
[1759088887247,0.71,206.92,206.89,0.68]
[1759088887867,0.71,206.92,206.89,3.30526698]
[1759088889746,0.2,206.94,206.89,3.30526698]
[1759088890044,2.62526698,206.92,206.89,0.68]
[1759088890358,3.33526698,206.92,206.89,0.68]
[1759088890862,3.33526698,206.91,206.88,2.62526698]
[1759088891264,3.33526698,206.91,206.88,3.33526698]
[1759088895064,2.62526698,206.91,206.88,2.62526698]
[1759088895371,29.32526698,206.93,206.89,0.71]
[1759088896049,0.7,206.92,206.89,0.71]
[1759088898370,26.0,206.93,206.89,0.71]
[1759088898956,26.7,206.93,206.89,0.71]
[1759088899556,28.37844183,206.93,206.89,0.71]
[1759088900465,0.2,206.94,206.89,0.71]
[1759088900771,0.2,206.94,206.89,2.38844183]
[1759088900972,0.2,206.94,206.9,0.7]
[1759088901552,0.2,206.94,206.9,2.37844183]
[1759088901875,0.2,206.94,206.91,0.7]
[1759088902560,0.2,206.94,206.92,1.67844183]
[1759088902760,0.2,206.94,206.93,0.7]
[1759088913893,0.2,206.94,206.93,5.53255207]
[1759088915077,0.2,206.94,206.93,4.53255207]
[1759088917086,0.2,206.94,206.93,5.14255207]
[1759088919273,0.2,206.94,206.93,42.22255207]
[1759088922880,0.2,206.94,206.93,37.06]
[1759088923080,0.89,206.94,206.93,37.06]
[1759088923284,0.2,206.94,206.93,37.06]
[1759088924495,0.2,206.94,206.92,1.67844183]
[1759088924709,0.89,206.94,206.93,37.04]
[1759088925992,0.89,206.94,206.92,1.67844183]
[1759088926288,0.89,206.94,206.93,37.06]
[1759088926493,0.89,206.94,206.92,1.67844183]
[1759088926793,0.89,206.94,206.93,37.04]
[1759088927882,0.89,206.94,206.92,1.67844183]
[1759088928082,0.89,206.94,206.93,37.04]
[1759088928593,0.2,206.94,206.93,37.04]
[1759088936195,0.87,206.94,206.93,37.04]
[1759088936689,0.2,206.94,206.92,1.67844183]
[1759088936898,0.87,206.94,206.93,37.02]
[1759088937405,0.2,206.94,206.93,37.02]
[1759088938282,0.2,206.94,206.93,41.85255207]
[1759088938510,0.2,206.94,206.93,42.46255207]
[1759088938711,0.2,206.94,206.93,41.85255207]
[1759088942595,0.2,206.94,206.93,56.05814608]
[1759088947607,0.2,206.94,206.93,55.44814608]
[1759088948131,5.63728571,206.97,206.93,82.05814608]
[1759088948324,5.63728571,206.97,206.96,15.27403584]
[1759088948624,5.63728571,206.97,206.96,52.27403584]
[1759088948927,5.63728571,206.97,206.96,67.41645524]
[1759088949436,5.63728571,206.97,206.96,72.2483068]
[1759088951135,5.63728571,206.97,206.96,98.2483068]
[1759088951331,0.67,207.03,206.97,13.59559401]
[1759088951505,0.67,207.03,207.02,15.27403584]
[1759088951705,0.69,207.04,207.02,52.31403584]
[1759088951900,0.69,207.04,207.03,1.67844183]
[1759088952309,0.69,207.06,207.03,1.67844183]
[1759088952627,26.0,207.13,207.05,1.67844183]
[1759088952837,33.0095309,207.13,207.06,37.04]
[1759088953135,0.69,207.12,207.06,37.04]
[1759088953328,0.69,207.11,207.06,37.04]
[1759088953631,0.69,207.1,207.06,37.04]
[1759088953810,0.69,207.09,207.06,37.04]
[1759088954011,0.69,207.08,207.06,37.04]
[1759088954212,0.69,207.07,207.06,37.04]
[1759088955916,0.69,207.07,207.06,38.71844183]
[1759088957233,0.69,207.07,207.06,53.24874963]
[1759088957536,0.69,207.09,207.06,53.24874963]
[1759088957740,0.69,207.08,207.06,53.24874963]
[1759088957910,0.69,207.07,207.06,53.24874963]
[1759088958319,0.69,207.07,207.06,54.18763616]
[1759088960238,0.69,207.1,207.06,54.18763616]
[1759088960537,0.69,207.09,207.08,2.61732836]
[1759088960738,0.69,207.09,207.08,39.63732836]
[1759088960927,0.69,207.09,207.08,54.16482164]
[1759088961317,0.69,207.09,207.08,51.54749328]
[1759088961517,0.69,207.09,207.07,37.02]
[1759088961834,0.7,207.08,207.07,51.56960407]
[1759088962628,0.7,207.08,207.07,37.04]
[1759088963016,0.7,207.1,207.07,51.56960407]
[1759088963238,0.7,207.09,207.07,54.18693243]
[1759088963656,6.96049906,207.11,207.07,39.65732836]
[1759088963954,0.7,207.1,207.08,14.52819681]
[1759088964125,0.7,207.1,207.09,37.04]
[1759088964325,6.26049906,207.11,207.07,2.61732836]
[1759088964534,0.7,207.09,207.08,37.04]
[1759088965419,0.7,207.09,207.08,43.30049906]
[1759088966121,6.26049906,207.11,207.08,43.30049906]
[1759088966324,0.7,207.1,207.08,45.91782742]
[1759088966521,0.7,207.09,207.08,39.65732836]
[1759088967030,0.7,207.09,207.08,43.30049906]
[1759088968559,0.7,207.09,207.08,37.02]
[1759088969059,3.31732836,207.09,207.07,6.26049906]
[1759088969217,0.7,207.08,207.05,37.02]
[1759088969421,0.7,207.07,207.05,37.02]
[1759088969621,0.7,207.06,207.05,37.02]
[1759088969845,0.7,207.06,207.0,2.61732836]
[1759088970042,0.7,207.05,207.03,6.26049906]
[1759088970218,2.61732836,207.09,207.04,37.06]
[1759088970547,2.61732836,207.07,207.03,6.26049906]
[1759088970734,0.7,207.06,207.04,37.06]
[1759088970937,0.7,207.05,207.04,37.06]
[1759088972126,0.7,207.05,207.01,13.59559401]
[1759088972322,0.7,207.04,207.03,37.06]
[1759088973251,0.7,207.04,207.01,13.59559401]
[1759088973443,0.7,207.03,207.02,37.06]
[1759088974241,0.7,207.03,207.01,13.59559401]
[1759088974646,26.0,207.08,207.02,37.04]
[1759088974949,2.61732836,207.07,207.02,37.04]
[1759088975352,0.7,207.06,207.01,13.59559401]
[1759088975530,0.7,207.05,207.03,37.04]
[1759088975844,0.7,207.04,207.03,37.04]
[1759088976434,0.7,207.04,207.02,37.04]
[1759088977031,2.61732836,207.07,207.02,37.04]
[1759088977032,0.7,207.07,207.03,2.61732836]
[1759088977254,0.7,207.07,207.04,37.04]
[1759088978339,0.7,207.07,207.04,51.5710116]
[1759088978745,0.7,207.07,207.04,37.04]
[1759088978940,0.7,207.07,207.05,6.26049906]
[1759088981525,0.7,207.06,207.05,43.30049906]
[1759088981738,0.7,207.06,207.05,37.04]
[1759088983750,0.7,207.06,206.98,16.21292237]
[1759088983941,0.7,207.05,207.01,6.26049906]
[1759088984140,0.7,207.04,207.02,37.04]
[1759088984342,0.7,207.03,207.02,37.04]
[1759088985152,0.7,207.05,207.02,37.04]
[1759088985551,0.7,207.04,207.02,37.04]
[1759088993060,0.67,207.03,207.02,37.04]
[1759088994341,0.67,207.03,207.01,6.26049906]
[1759088994653,0.67,207.02,207.01,37.02]
[1759088995156,0.67,207.02,206.97,3.22732836]
[1759088995358,0.67,207.02,206.99,14.53453163]
[1759088995546,0.67,207.03,207.0,37.02]
[1759088995951,2.61732836,207.05,207.0,37.02]
[1759088996258,0.67,207.02,207.0,37.02]
[1759088998859,2.61732836,207.05,207.0,37.02]
[1759088999156,0.67,207.02,207.0,37.02]
[1759089000960,0.67,207.01,207.0,37.02]
[1759089001557,2.61732836,207.05,207.0,37.02]
[1759089001761,0.67,207.03,207.0,37.02]
[1759089002741,0.67,207.02,207.0,37.0]
[1759089005246,0.67,207.01,207.0,37.0]
[1759089005751,0.67,207.01,206.99,14.53453163]
[1759089006049,0.67,207.01,207.0,37.0]
[1759089006361,0.67,207.0,206.95,3.22732836]
[1759089006561,0.67,206.99,206.96,37.0]
[1759089006856,0.67,206.98,206.97,37.0]
[1759089007639,0.67,206.98,206.96,14.53664445]
[1759089007856,0.67,206.97,206.96,14.53664445]
[1759089008164,0.67,206.97,206.95,37.0]
[1759089008771,3.28732836,206.97,206.95,37.0]
[1759089009773,0.67,206.96,206.94,37.0]
[1759089010348,3.28732836,206.95,206.9,0.61]
[1759089010651,0.67,206.94,206.92,37.0]
[1759089010851,3.28732836,206.93,206.88,0.61]
[1759089011163,3.28732836,206.93,206.89,52.1515768]
[1759089011553,2.61732836,206.93,206.89,51.5415768]
[1759089011745,0.7,206.92,206.89,51.5415768]
[1759089011969,2.61732836,206.93,206.89,51.5415768]
[1759089012269,3.31732836,206.93,206.89,52.1515768]
[1759089012475,0.7,206.92,206.89,51.5415768]
[1759089012672,2.61732836,206.93,206.87,0.61]
[1759089012983,0.7,206.91,206.88,51.56228169]
[1759089014568,0.7,206.9,206.88,37.02]
[1759089014956,0.7,206.89,206.87,37.02]
[1759089016654,0.7,206.89,206.86,6.33451522]
[1759089016857,2.61732836,206.89,206.86,37.02]
[1759089017154,26.0,206.92,206.86,0.61]
[1759089017353,3.31732836,206.91,206.85,37.02]
[1759089017564,0.7,206.9,206.85,37.02]
[1759089017766,0.7,206.89,206.85,37.63]
[1759089018270,2.61732836,206.91,206.86,0.61]
[1759089018678,3.31732836,206.9,206.86,0.61]
[1759089018855,2.61732836,206.9,206.85,37.02]
[1759089019057,0.7,206.89,206.85,37.63]
[1759089019274,2.61732836,206.9,206.83,4.83477078]
[1759089019592,0.7,206.88,206.84,37.08]
[1759089020078,0.7,206.88,206.85,37.08]
[1759089020375,1.67904881,206.89,206.85,37.08]
[1759089020772,2.33904881,206.89,206.85,37.08]
[1759089021072,0.66,206.88,206.86,37.08]
[1759089021969,2.33904881,206.89,206.86,37.08]
[1759089028762,0.66,206.89,206.86,37.08]
[1759089029361,0.66,206.89,206.84,2.28904881]
[1759089029561,0.66,206.89,206.85,37.67]
[1759089030086,0.66,206.89,206.85,0.61]
[1759089030292,0.66,206.89,206.85,37.67]
[1759089031885,0.66,206.88,206.84,2.28904881]
[1759089032079,1.67904881,206.91,206.84,37.06]
[1759089032280,0.66,206.9,206.85,0.61]
[1759089032585,0.66,206.89,206.85,0.61]
[1759089032784,1.67904881,206.87,206.81,14.54439677]
[1759089032984,1.67904881,206.87,206.76,0.2]
[1759089032985,1.67904881,206.83,206.76,0.2]
[1759089033187,1.67904881,206.77,206.76,0.2]
[1759089033485,8.78110052,206.77,206.76,0.2]
[1759089040390,7.10205171,206.77,206.76,0.2]
[1759089040696,8.78110052,206.77,206.76,0.2]
[1759089042367,6.44205171,206.77,206.76,0.2]
[1759089043081,6.44205171,206.77,206.76,0.81]
[1759089043691,6.44205171,206.77,206.76,0.2]
[1759089052198,7.13205171,206.77,206.76,0.2]
[1759089052374,34.81110052,206.77,206.76,0.2]
[1759089058197,32.44205171,206.77,206.76,0.2]
[1759089059305,6.44205171,206.77,206.76,0.2]
[1759089060399,7.13205171,206.77,206.76,0.2]
[1759089064811,6.44205171,206.77,206.76,0.2]
[1759089072298,7.11205171,206.77,206.76,0.2]
[1759089074411,6.44205171,206.77,206.76,0.2]
[1759089077301,7.11205171,206.77,206.76,0.2]
[1759089077501,8.79110052,206.77,206.76,0.2]
[1759089077900,26.0,206.74,206.72,0.2]
[1759089078107,27.67904881,206.73,206.72,0.2]
[1759089078315,29.56133478,206.73,206.72,0.2]
[1759089080209,30.51041258,206.73,206.72,0.2]
[1759089080409,4.51041258,206.73,206.72,0.2]
[1759089081528,18.10600659,206.73,206.72,0.2]
[1759089081710,55.20600659,206.73,206.72,0.2]
[1759089082427,41.61041258,206.73,206.72,0.2]
[1759089082811,4.51045785,206.73,206.72,0.2]
[1759089085733,30.51045785,206.73,206.72,0.2]
[1759089086131,1.21233124,206.73,206.72,0.2]
[1759089086327,27.21233124,206.73,206.72,0.2]
[1759089087236,29.84045785,206.73,206.72,0.2]
[1759089087430,30.56045785,206.73,206.72,0.2]
[1759089089641,4.56045785,206.73,206.72,0.2]
[1759089092439,1.93233124,206.73,206.72,0.2]
[1759089092950,1.21233124,206.73,206.72,0.2]
[1759089093129,27.21233124,206.73,206.72,0.2]
[1759089093630,27.93233124,206.73,206.72,0.2]
[1759089094959,30.56045785,206.73,206.72,0.2]
[1759089100354,55.23605186,206.73,206.72,0.2]
[1759089100650,26.0,206.7,206.69,0.2]
[1759089100851,69.58858446,206.7,206.68,0.2]
[1759089101025,7.18858446,206.69,206.68,0.2]
[1759089102634,4.56045785,206.69,206.68,0.2]
[1759089105044,41.68045785,206.69,206.68,0.2]
[1759089107247,39.05233124,206.69,206.68,0.2]
[1759089107455,41.68045785,206.69,206.68,0.2]
[1759089108259,4.56045785,206.69,206.68,0.2]
[1759089108458,41.68045785,206.69,206.68,0.2]
[1759089108758,41.66045785,206.69,206.68,0.2]
[1759089110342,27.93233124,206.69,206.68,0.2]
[1759089110659,29.84045785,206.69,206.68,0.2]
[1759089110958,3.84045785,206.69,206.68,0.89]
[1759089111257,29.84045785,206.69,206.68,0.2]
[1759089111656,28.62812661,206.69,206.68,0.2]
[1759089112257,2.62812661,206.69,206.68,0.2]
[1759089112462,1.21241892,206.7,206.68,0.2]
[1759089112672,26.66,206.71,206.68,0.2]
[1759089112673,3.84054553,206.69,206.68,0.2]
[1759089113255,4.50054553,206.69,206.68,0.2]
[1759089116242,4.50062794,206.69,206.68,0.2]
[1759089117365,3.84062794,206.69,206.68,0.2]
[1759089122378,7.08768327,206.69,206.68,0.2]
[1759089125949,7.74768327,206.69,206.68,0.2]
[1759089129477,28.80956732,206.69,206.63,0.2]
[1759089129778,16.22372062,206.64,206.63,0.2]
[1759089129967,53.30372062,206.64,206.63,0.2]
[1759089130157,20.13077595,206.64,206.63,0.2]
[1759089130357,53.98372062,206.64,206.63,0.2]
[1759089130672,57.23077595,206.64,206.63,0.2]
[1759089130865,20.13077595,206.64,206.63,0.2]
[1759089131066,53.98372062,206.64,206.63,0.2]
[1759089131250,57.23077595,206.64,206.63,0.2]
[1759089131447,3.28812661,206.64,206.63,0.2]
[1759089131662,29.28812661,206.64,206.63,0.2]
[1759089134184,3.28812661,206.64,206.63,0.2]
[1759089138162,16.88372062,206.64,206.63,0.2]
[1759089138475,53.98372062,206.64,206.63,0.2]
[1759089138959,16.88372062,206.64,206.63,0.2]
[1759089139278,53.98372062,206.64,206.63,0.2]
[1759089139480,16.88372062,206.64,206.63,0.2]
[1759089139698,57.24068817,206.64,206.63,0.2]
[1759089140967,20.14068817,206.64,206.63,0.2]
[1759089141164,57.24068817,206.64,206.63,0.2]
[1759089141569,20.14068817,206.64,206.63,0.2]
[1759089141771,57.24068817,206.64,206.63,0.2]
[1759089142278,56.29643491,206.64,206.63,0.2]
[1759089143079,42.0408409,206.64,206.63,0.89]
[1759089143285,1.68387335,206.64,206.63,0.2]
[1759089143454,42.0208409,206.64,206.63,0.89]
[1759089143661,42.0208409,206.64,206.63,0.2]
[1759089144276,68.0208409,206.64,206.63,0.2]
[1759089144864,4.9408409,206.64,206.63,0.2]
[1759089145080,42.0208409,206.64,206.63,0.2]
[1759089145272,4.9408409,206.64,206.63,0.2]
[1759089146792,3.25696755,206.64,206.63,0.2]
[1759089146992,1.68387335,206.64,206.63,0.2]
[1759089147570,4.94479532,206.64,206.63,0.2]
[1759089149083,30.94479532,206.64,206.63,0.2]
[1759089149290,4.94479532,206.64,206.63,0.2]
[1759089152077,30.94479532,206.64,206.63,0.2]
[1759089152278,68.02479532,206.64,206.63,0.2]
[1759089152986,68.69479532,206.64,206.63,0.2]
[1759089153186,31.61479532,206.64,206.63,0.2]
[1759089153588,68.69479532,206.64,206.63,0.2]
[1759089157003,82.29038933,206.64,206.63,0.2]
[1759089158084,45.21038933,206.64,206.63,0.2]
[1759089158399,82.29038933,206.64,206.63,0.2]
[1759089159604,45.21038933,206.64,206.63,0.2]
[1759089159805,82.29038933,206.64,206.63,0.2]
[1759089160184,45.21038933,206.64,206.63,0.2]
[1759089160384,82.29038933,206.64,206.63,0.2]
[1759089161093,45.21038933,206.64,206.63,0.2]
[1759089161290,82.29038933,206.64,206.63,0.2]
[1759089162598,45.21038933,206.64,206.63,0.2]
[1759089162798,82.29038933,206.64,206.63,0.2]
[1759089167312,82.29391642,206.64,206.63,0.2]
[1759089169309,45.21391642,206.64,206.63,0.2]
[1759089169514,82.29391642,206.64,206.63,0.2]
[1759089170193,45.21391642,206.64,206.63,0.2]
[1759089170599,82.29391642,206.64,206.63,0.2]
[1759089172214,43.53004307,206.64,206.63,0.2]
[1759089172412,82.29391642,206.64,206.63,0.2]
[1759089173102,45.21391642,206.64,206.63,0.2]
[1759089173410,82.29391642,206.64,206.63,0.2]
[1759089175013,82.3007458,206.64,206.63,0.2]
[1759089178211,45.2207458,206.64,206.63,0.2]
[1759089178412,82.3007458,206.64,206.63,0.2]
[1759089182404,45.2207458,206.64,206.63,0.2]
[1759089182718,82.3007458,206.64,206.63,0.2]
[1759089182903,29.27127844,206.64,206.63,0.87]
[1759089183221,3.27127844,206.64,206.63,0.87]
[1759089183401,4.95515179,206.64,206.63,0.87]
[1759089183599,4.95515179,206.64,206.63,0.2]
[1759089186421,3.27127844,206.64,206.63,0.2]
[1759089186622,4.95515179,206.64,206.63,0.2]
[1759089188603,42.71515179,206.64,206.63,0.2]
[1759089190929,5.63515179,206.64,206.63,0.2]
[1759089191222,42.71515179,206.64,206.63,0.2]
[1759089191424,5.63515179,206.64,206.63,0.2]
[1759089191612,42.71515179,206.64,206.63,0.2]
[1759089194032,31.63515179,206.64,206.63,0.2]
[1759089194206,42.71515179,206.64,206.63,0.2]
[1759089194408,68.71515179,206.64,206.63,0.2]
[1759089194612,42.71515179,206.64,206.63,0.2]
[1759089196036,5.63515179,206.64,206.63,0.2]
[1759089196331,42.71515179,206.64,206.63,0.2]
[1759089203539,5.63515179,206.64,206.63,0.2]
[1759089203736,42.69515179,206.64,206.63,0.2]
[1759089204038,5.63515179,206.64,206.63,0.2]
[1759089204248,43.64197132,206.64,206.63,0.2]
[1759089205136,6.58197132,206.64,206.63,0.2]
[1759089205336,43.64197132,206.64,206.63,0.2]
[1759089207524,32.58197132,206.64,206.63,0.2]
[1759089207732,69.64197132,206.64,206.63,0.2]
[1759089207925,43.64197132,206.64,206.63,0.2]
[1759089217234,47.73106937,206.64,206.63,0.2]
[1759089218058,43.64197132,206.64,206.63,0.2]
[1759089218956,47.73106937,206.64,206.63,0.2]
[1759089219138,43.64197132,206.64,206.63,0.2]
[1759089219345,47.73106937,206.64,206.63,0.2]
[1759089219655,47.05106937,206.64,206.63,0.2]
[1759089219955,47.05106937,206.64,206.63,0.92]
[1759089220458,47.05106937,206.64,206.63,0.2]
[1759089226167,47.05106937,206.64,206.63,0.92]
[1759089226467,31.90197132,206.64,206.63,0.92]
[1759089227043,29.27127844,206.64,206.63,0.92]
[1759089227578,3.27127844,206.64,206.63,0.92]
[1759089227948,29.27127844,206.64,206.63,0.92]
[1759089229062,29.27127844,206.64,206.63,3.55069288]
[1759089232672,29.27127844,206.64,206.63,2.83069288]
[1759089241482,31.90197132,206.64,206.63,2.83069288]
[1759089243262,32.59197132,206.64,206.63,2.83069288]
[1759089245869,31.90197132,206.64,206.63,2.83069288]
[1759089253392,32.60197132,206.64,206.63,2.83069288]
[1759089253991,31.90197132,206.64,206.63,2.83069288]
[1759089254576,29.27127844,206.64,206.63,2.83069288]
[1759089254771,31.90197132,206.64,206.63,2.83069288]
[1759089255093,31.90197132,206.64,206.63,3.52069288]
[1759089255792,31.90197132,206.64,206.63,2.83069288]
[1759089258697,32.60197132,206.64,206.63,2.83069288]
[1759089260799,6.60197132,206.64,206.63,2.83069288]
[1759089264207,30.95438509,206.64,206.63,2.83069288]
[1759089266509,29.27127844,206.64,206.63,2.83069288]
[1759089267796,29.27127844,206.64,206.63,3.49069288]
[1759089269715,3.27127844,206.64,206.63,5.17379953]
[1759089269910,0.71,206.7,206.63,5.17379953]
[1759089269911,2.39310665,206.7,206.63,5.17379953]
[1759089270105,26.0,206.67,206.64,0.66]
[1759089270306,34.06109472,206.67,206.64,0.66]
[1759089271100,34.06109472,206.67,206.65,14.55992623]
[1759089271302,34.06109472,206.67,206.66,0.66]